{"text_format":"1","workbook":"xlsx","n_sheets":5,"sheets":["Schießkladde","Mannschaftswertung","Einzelwertung ","GefilterteRangliste","Info"],"not_rendered":{"charts":0,"images":0,"macros":1,"external_links":0,"defined_names":8,"comments":1,"pivot_tables":0},"unopened":[],"bounds":{"document_bytes":16777216,"sheet_cells":100000,"rows_first":2000,"rows_last":500,"rows_between":2000,"halvings":0,"cell_chars":16384,"cell_head_chars":4096},"cells_cut":0,"cells_raw":0,"read":"whole","date_system":"1900"}

{"sheet":"Schießkladde","index":0,"n_rows":102,"n_cols":67,"rows_kept":102,"cut":false,"hidden":false,"merged":[[47,1,47,2],[1,35,1,36],[39,1,39,2],[41,1,42,3],[44,1,45,3],[20,1,20,4],[0,35,0,44],[36,1,37,3],[24,1,25,3],[22,1,23,3],[32,1,34,3],[27,1,27,3],[28,1,29,3],[31,1,31,3],[0,7,0,10]]}
[null,{"$f":"COUNTA(I3:I102)","v":0},{"$f":"IF(B1>=1,LARGE(AH3:AH102,1),\"\")","v":""},{"$f":"IF(Schießkladde!G1=1,\"Gesamt dann BESTER Satz\",\"Gem. Sportordnung, Gesamt dann LETZTER Satz\")","v":"Gesamt dann BESTER Satz"},null,null,{"$f":"D44","v":1},"Vergleichsschießen Bollersen- Hassel",null,null,null,null,null,null,null,null,null,null,null,null,null,null,null,null,null,"2024-03-28T12:14:05",null,null,null,null,null,null,null,null,null,null,null,null,null,null,null,null,null,null,null,null,null,null,null,null,null,null,1.9999999999999999E-6,null,9.9999999999999995E-7,null,null,null,"< Drop Downliste Vereine",null,null,null,null,null,null,null,"TnWert"]
[null,"Mannsch. Rang","Mannsch. Ergebnis","Mannschaftsliste",{"$f":"D40","v":1},null,"Einzel Rang","Einzel- ergebnis","Name","Vorname","Mannschaft",1,2,3,4,5,6,7,8,9,10,11,12,13,14,15,16,17,18,19,20,"S1","S2","Ges","Bez.","Stechen",null,null,null,null,null,null,null,null,null,"Rang 2 (Spo)","Rang 2 (Spo)","Rang 1","Rang 1",null,"bester Satz","Stechen ges.","Rang2Teilsumme","Rang2Ts","Rang 1Teilsumme","Rang1Ts",null,{"$f":"eindeutig(D3:D20)","v":"Bollersen"}]
[null,{"$f":"IF(C3=\"\",\"\",_xlfn.RANK.EQ(C3,$C$3:$C$19,0))","v":1},{"$f":"IF(E3>$E$2,\"\",IF(D3=\"\",\"\",SUMIFS($AH$2:$AH$102,$K$2:$K$102,D3)))","v":0},"Bollersen",{"$f":"IF(D3=\"\",\"\",COUNTIF(K:K,D3))","v":0},null,{"$f":"IFERROR(IF(I3=\"\",\"\",IF($G$1=1,BD3,BB3)),\"??\")","v":""},{"$f":"AH3","v":""},null,null,null,0,null,null,null,null,null,null,null,null,null,null,null,null,null,null,null,null,null,null,null,{"$f":"IF(I3=\"\",\"\",SUM(L3:U3))","v":""},{"$f":"IF(I3=\"\",\"\",SUM(V3:AE3))","v":""},{"$f":"IF(I3=\"\",\"\",AF3+AG3)","v":""},null,null,null,null,null,null,null,null,null,null,null,{"$f":"IFERROR(IF(OR($M$1=K3,$M$1=\"\"),(AH3*400000000000000)+(AG3*2500000000000)+(AJ3)+(AK3)+(AL3)+(AM3)+(AN3)+(AO3+AO3+AP3+AQ3+AR3+AS3)),\"\")","v":""},{"$f":"IF(I3=\"\",\"\",_xlfn.RANK.EQ($AT$3:$AT$103,$AT$3:$AT$103,0))","v":""},{"$f":"IFERROR(IF(OR($M$1=K3,$M$1=\"\"),(AH3*4000000000000)+LARGE(AF3:AG3,1)*2500000000+(AJ3+AK3+AL3+AM3+AN3+AO3+AO3+AP3+AQ3+AR3+AS3)),\"\")","v":""},{"$f":"BB3","v":""},{"$f":"SUM(AJ3:AS3)","v":0},{"$f":"IF(AT3=\"\",\"\",LARGE(AF3:AG3,1))","v":""},{"$f":"SUM(AJ3:AS3)","v":0},{"$f":"SUBTOTAL(9,AT3,$BA$1)","v":1.9999999999999999E-6},{"$f":"IF(I3=\"\",\"\",_xlfn.RANK.EQ($BA$3:$BA$103,$BA$3:$BA$103,0))","v":""},{"$f":"SUBTOTAL(9,AV3,$BC$1)","v":9.9999999999999995E-7},{"$f":"IF(I3=\"\",\"\",_xlfn.RANK.EQ($BC$3:$BC$103,$BC$3:$BC$103,0))","v":""},null,"Hassel",null,null,null,null,null,null,null,null,{"$f":"CONCATENATE(I3,\" \",J3,\" \",K3)","v":"  "}]
[null,1,0,"Hassel",0,null,"","",null,null,null,null,null,null,null,null,null,null,null,null,null,null,null,null,null,null,null,null,null,null,null,"","","",null,null,null,null,null,null,null,null,null,null,null,"",{"$f":"IF(I4=\"\",\"\",_xlfn.RANK.EQ($AT$3:$AT$103,$AT$3:$AT$103,0))","v":""},{"$f":"IFERROR(IF(OR($M$1=K4,$M$1=\"\"),(AH4*4000000000000)+LARGE(AF4:AG4,1)*2500000000+(AJ4+AK4+AL4+AM4+AN4+AO4+AO4+AP4+AQ4+AR4+AS4)),\"\")","v":""},{"$f":"IF(I4=\"\",\"\",_xlfn.RANK.EQ($AV$3:$AV$103,$AV$3:$AV$103,0))","v":""},{"$f":"SUM(AJ4:AS4)","v":0},"",{"$f":"SUM(AJ4:AS4)","v":0},{"$f":"SUBTOTAL(9,AT4,$BA$1)","v":1.9999999999999999E-6},{"$f":"IF(I4=\"\",\"\",_xlfn.RANK.EQ($BA$3:$BA$103,$BA$3:$BA$103,0))","v":""},{"$f":"SUBTOTAL(9,AV4,$BC$1)","v":9.9999999999999995E-7},{"$f":"IF(I4=\"\",\"\",_xlfn.RANK.EQ($BC$3:$BC$103,$BC$3:$BC$103,0))","v":""},null,"Gäste",null,null,null,null,null,null,null,null,"  "]
[null,"","",null,"",null,"","",null,null,null,null,null,null,null,null,null,null,null,null,null,null,null,null,null,null,null,null,null,null,null,"","","",null,null,null,null,null,null,null,null,null,null,null,"","","","",0,"",0,1.9999999999999999E-6,"",{"$f":"SUBTOTAL(9,AV5,$BC$1)","v":9.9999999999999995E-7},"",null,"",null,null,null,null,null,null,null,null,"  "]
[null,"","",null,"",null,"","",null,null,null,null,null,null,null,null,null,null,null,null,null,null,null,null,null,null,null,null,null,null,null,"","","",null,null,null,null,null,null,null,null,null,null,null,"","","","",0,"",0,1.9999999999999999E-6,"",9.9999999999999995E-7,"",null,"",null,null,null,null,null,null,null,null,"  "]
[null,"","",null,"",null,"","",null,null,null,null,null,null,null,null,null,null,null,null,null,null,null,null,null,null,null,null,null,null,null,"","","",null,null,null,null,null,null,null,null,null,null,null,"","","","",0,"",0,1.9999999999999999E-6,"",9.9999999999999995E-7,"",null,"",null,null,null,null,null,null,null,null,"  "]
[null,"","",null,"",null,"","",null,null,null,null,null,null,null,null,null,null,null,null,null,null,null,null,null,null,null,null,null,null,null,"","","",null,null,null,null,null,null,null,null,null,null,null,"","","","",0,"",0,1.9999999999999999E-6,"",9.9999999999999995E-7,"",null,"",null,null,null,null,null,null,null,null,"  "]
[null,"","",null,"",null,"","",null,null,null,null,null,null,null,null,null,null,null,null,null,null,null,null,null,null,null,null,null,null,null,"","","",null,null,null,null,null,null,null,null,null,null,null,"","","","",0,"",0,1.9999999999999999E-6,"",9.9999999999999995E-7,"",null,"",null,null,null,null,null,null,null,null,"  "]
[null,"","",null,"",null,"","",null,null,null,null,null,null,null,null,null,null,null,null,null,null,null,null,null,null,null,null,null,null,null,"","","",null,null,null,null,null,null,null,null,null,null,null,"","","","",0,"",0,1.9999999999999999E-6,"",9.9999999999999995E-7,"",null,"",null,null,null,null,null,null,null,null,"  "]
[null,"","",null,"",null,"","",null,null,null,null,null,null,null,null,null,null,null,null,null,null,null,null,null,null,null,null,null,null,null,"","","",null,null,null,null,null,null,null,null,null,null,null,"","","","",0,"",0,1.9999999999999999E-6,"",9.9999999999999995E-7,"",null,"",null,null,null,null,null,null,null,null,"  "]
[null,"","",null,"",null,"","",null,null,null,null,null,null,null,null,null,null,null,null,null,null,null,null,null,null,null,null,null,null,null,"","","",null,null,null,null,null,null,null,null,null,null,null,"","","","",0,"",0,1.9999999999999999E-6,"",9.9999999999999995E-7,"",null,"",null,null,null,null,null,null,null,null,"  "]
[null,"","",null,"",null,"","",null,null,null,null,null,null,null,null,null,null,null,null,null,null,null,null,null,null,null,null,null,null,null,"","","",null,null,null,null,null,null,null,null,null,null,null,"","","","",0,"",0,1.9999999999999999E-6,"",9.9999999999999995E-7,"",null,"",null,null,null,null,null,null,null,null,"  "]
[null,"","",null,"",null,"","",null,null,null,null,null,null,null,null,null,null,null,null,null,null,null,null,null,null,null,null,null,null,null,"","","",null,null,null,null,null,null,null,null,null,null,null,"","","","",0,"",0,1.9999999999999999E-6,"",9.9999999999999995E-7,"",null,"",null,null,null,null,null,null,null,null,"  "]
[null,"","",null,"",null,"","",null,null,null,null,null,null,null,null,null,null,null,null,null,null,null,null,null,null,null,null,null,null,null,"","","",null,null,null,null,null,null,null,null,null,null,null,"","","","",0,"",0,1.9999999999999999E-6,"",9.9999999999999995E-7,"",null,"",null,null,null,null,null,null,null,null,"  "]
[null,"","",null,"",null,"","",null,null,null,null,null,null,null,null,null,null,null,null,null,null,null,null,null,null,null,null,null,null,null,"","","",null,null,null,null,null,null,null,null,null,null,null,"","","","",0,"",0,1.9999999999999999E-6,"",9.9999999999999995E-7,"",null,"",null,null,null,null,null,null,null,null,"  "]
[null,"","",null,"",null,"","",null,null,null,null,null,null,null,null,null,null,null,null,null,null,null,null,null,null,null,null,null,null,null,"","","",null,null,null,null,null,null,null,null,null,null,null,"","","","",0,"",0,1.9999999999999999E-6,"",9.9999999999999995E-7,"",null,"",null,null,null,null,null,null,null,null,"  "]
[null,"","",null,"",null,"","",null,null,null,null,null,null,null,null,null,null,null,null,null,null,null,null,null,null,null,null,null,null,null,"","","",null,null,null,null,null,null,null,null,null,null,null,"","","","",0,"",0,1.9999999999999999E-6,"",9.9999999999999995E-7,"",null,"",null,null,null,null,null,null,null,null,"  "]
[null,"","",null,"",null,"","",null,null,null,null,null,null,null,null,null,null,null,null,null,null,null,null,null,null,null,null,null,null,null,"","","",null,null,null,null,null,null,null,null,null,null,null,"","","","",0,"",0,1.9999999999999999E-6,"",9.9999999999999995E-7,"",null,"",null,null,null,null,null,null,null,null,"  "]
[null,null,null,"Gäste",0,null,"","",null,null,null,null,null,null,null,null,null,null,null,null,null,null,null,null,null,null,null,null,null,null,null,"","","",null,null,null,null,null,null,null,null,null,null,null,"","","","",0,"",0,1.9999999999999999E-6,"",9.9999999999999995E-7,"",null,{"$error":"#N/A"},null,null,null,null,null,null,null,null,"  "]
[null,"Einstellungen",null,null,null,null,"","",null,null,null,null,null,null,null,null,null,null,null,null,null,null,null,null,null,null,null,null,null,null,null,"","","",null,null,null,null,null,null,null,null,null,null,null,"","","","",0,"",0,1.9999999999999999E-6,"",9.9999999999999995E-7,"",null,{"$f":"eindeutig(D22:D39)","v":""},null,null,null,null,null,null,null,null,"  "]
[null,null,null,null,null,null,"","",null,null,null,null,null,null,null,null,null,null,null,null,null,null,null,null,null,null,null,null,null,null,null,"","","",null,null,null,null,null,null,null,null,null,null,null,"","","","",0,"",0,1.9999999999999999E-6,"",9.9999999999999995E-7,"",null,{"$f":"eindeutig(D23:D40)","v":1},null,null,null,null,null,null,null,null,"  "]
[null,"C:\\Auspacken\\",null,null,null,null,"","",null,null,null,null,null,null,null,null,null,null,null,null,null,null,null,null,null,null,null,null,null,null,null,"","","",null,null,null,null,null,null,null,null,null,null,null,"","","","",0,"",0,1.9999999999999999E-6,"",9.9999999999999995E-7,"",null,{"$f":"eindeutig(D24:D41)","v":1},null,null,null,null,null,null,null,null,"  "]
[null,null,null,null,null,null,"","",null,null,null,null,null,null,null,null,null,null,null,null,null,null,null,null,null,null,null,null,null,null,null,"","","",null,null,null,null,null,null,null,null,null,null,null,"","","","",0,"",0,1.9999999999999999E-6,"",9.9999999999999995E-7,"",null,{"$f":"eindeutig(D25:D42)","v":1},null,null,null,null,null,null,null,null,"  "]
[null,"In diesem Pfad wird bei jedem speichern eine Datensicherung angelegt.",null,null,null,null,"","",null,null,null,null,null,null,null,null,null,null,null,null,null,null,null,null,null,null,null,null,null,null,null,"","","",null,null,null,null,null,null,null,null,null,null,null,"","","","",0,"",0,1.9999999999999999E-6,"",9.9999999999999995E-7,"",null,{"$f":"eindeutig(D26:D43)","v":1},null,null,null,null,null,null,null,null,"  "]
[null,null,null,null,null,null,"","",null,null,null,null,null,null,null,null,null,null,null,null,null,null,null,null,null,null,null,null,null,null,null,"","","",null,null,null,null,null,null,null,null,null,null,null,"","","","",0,"",0,1.9999999999999999E-6,"",9.9999999999999995E-7,"",null,null,null,null,null,null,null,null,null,null,"  "]
[null,null,null,null,null,null,"","",null,null,null,null,null,null,null,null,null,null,null,null,null,null,null,null,null,null,null,null,null,null,null,"","","",null,null,null,null,null,null,null,null,null,null,null,"","","","",0,"",0,1.9999999999999999E-6,"",9.9999999999999995E-7,"",null,null,null,null,null,null,null,null,null,null,"  "]
[null,"Speicherort:",null,null,null,null,"","",null,null,null,null,null,null,null,null,null,null,null,null,null,null,null,null,null,null,null,null,null,null,null,"","","",null,null,null,null,null,null,null,null,null,null,null,"","","","",0,"",0,1.9999999999999999E-6,"",9.9999999999999995E-7,"",null,null,null,null,null,null,null,null,null,null,"  "]
[null,"C:\\Dokumente\\Schützenverein\\Pokalschießen\\",null,null,null,null,"","",null,null,null,null,null,null,null,null,null,null,null,null,null,null,null,null,null,null,null,null,null,null,null,"","","",null,null,null,null,null,null,null,null,null,null,null,"","","","",0,"",0,1.9999999999999999E-6,"",9.9999999999999995E-7,"",null,null,null,null,null,null,null,null,null,null,"  "]
[null,null,null,null,null,null,"","",null,null,null,null,null,null,null,null,null,null,null,null,null,null,null,null,null,null,null,null,null,null,null,"","","",null,null,null,null,null,null,null,null,null,null,null,"","","","",0,"",0,1.9999999999999999E-6,"",9.9999999999999995E-7,"",null,null,null,null,null,null,null,null,null,null,"  "]
[null,null,null,null,null,null,"","",null,null,null,null,null,null,null,null,null,null,null,null,null,null,null,null,null,null,null,null,null,null,null,"","","",null,null,null,null,null,null,null,null,null,null,null,"","","","",0,"",0,1.9999999999999999E-6,"",9.9999999999999995E-7,"",null,null,null,null,null,null,null,null,null,null,"  "]
[null,"Momentaner Speicherort:",null,null,null,null,"","",null,null,null,null,null,null,null,null,null,null,null,null,null,null,null,null,null,null,null,null,null,null,null,"","","",null,null,null,null,null,null,null,null,null,null,null,"","","","",0,"",0,1.9999999999999999E-6,"",9.9999999999999995E-7,"",null,null,null,null,null,null,null,null,null,null,"  "]
[null,{"$f":"LEFT(CELL(\"dateiname\"),SEARCH(\"[\",CELL(\"dateiname\"))-2)","v":"C:\\Dokumente\\Schützenverein\\Vergleichsschießen Bollersen- Hassel"},null,null,null,null,"","",null,null,null,null,null,null,null,null,null,null,null,null,null,null,null,null,null,null,null,null,null,null,null,"","","",null,null,null,null,null,null,null,null,null,null,null,"","","","",0,"",0,1.9999999999999999E-6,"",9.9999999999999995E-7,"",null,null,null,null,null,null,null,null,null,null,"  "]
[null,null,null,null,null,null,"","",null,null,null,null,null,null,null,null,null,null,null,null,null,null,null,null,null,null,null,null,null,null,null,"","","",null,null,null,null,null,null,null,null,null,null,null,"","","","",0,"",0,1.9999999999999999E-6,"",9.9999999999999995E-7,"",null,null,null,null,null,null,null,null,null,null,"  "]
[null,null,null,null,null,null,{"$f":"IFERROR(IF(I35=\"\",\"\",IF($G$1=1,BD35,BB35)),\"??\")","v":""},{"$f":"AH35","v":""},null,null,null,null,null,null,null,null,null,null,null,null,null,null,null,null,null,null,null,null,null,null,null,{"$f":"IF(I35=\"\",\"\",SUM(L35:U35))","v":""},{"$f":"IF(I35=\"\",\"\",SUM(V35:AE35))","v":""},{"$f":"IF(I35=\"\",\"\",AF35+AG35)","v":""},null,null,null,null,null,null,null,null,null,null,null,"","","","",0,{"$f":"IF(AT35=\"\",\"\",LARGE(AF35:AG35,1))","v":""},0,1.9999999999999999E-6,"",9.9999999999999995E-7,"",null,null,null,null,null,null,null,null,null,null,{"$f":"CONCATENATE(I35,\" \",J35,\" \",K35)","v":"  "}]
[null,null,null,null,null,null,"","",null,null,null,null,null,null,null,null,null,null,null,null,null,null,null,null,null,null,null,null,null,null,null,"","","",null,null,null,null,null,null,null,null,null,null,null,"","","","",0,"",0,1.9999999999999999E-6,"",9.9999999999999995E-7,"",null,null,null,null,null,null,null,null,null,null,"  "]
[null,"Im Protokoll werden alle Eingaben in die Schießkladde aufgezeichnet.",null,null,null,null,"","",null,null,null,null,null,null,null,null,null,null,null,null,null,null,null,null,null,null,null,null,null,null,null,"","","",null,null,null,null,null,null,null,null,null,null,null,"","","","",0,"",0,1.9999999999999999E-6,"",9.9999999999999995E-7,"",null,null,null,null,null,null,null,null,null,null,"  "]
[null,null,null,null,null,null,"","",null,null,null,null,null,null,null,null,null,null,null,null,null,null,null,null,null,null,null,null,null,null,null,"","","",null,null,null,null,null,null,null,null,null,null,null,"","","","",0,"",0,1.9999999999999999E-6,"",9.9999999999999995E-7,"",null,null,null,null,null,null,null,null,null,null,"  "]
[null,null,null,null,null,null,"","",null,null,null,null,null,null,null,null,null,null,null,null,null,null,null,null,null,null,null,null,null,null,null,"","","",null,null,null,null,null,null,null,null,null,null,null,"","","","",0,"",0,1.9999999999999999E-6,"",9.9999999999999995E-7,"",null,null,null,null,null,null,null,null,null,null,"  "]
[null,"Mannschaftsstärke:",null,1,null,null,"","",null,null,null,null,null,null,null,null,null,null,null,null,null,null,null,null,null,null,null,null,null,null,null,"","","",null,null,null,null,null,null,null,null,null,null,null,"","","","",0,"",0,1.9999999999999999E-6,"",9.9999999999999995E-7,"",null,null,null,null,null,null,null,null,null,null,"  "]
[null,null,null,null,null,null,"","",null,null,null,null,null,null,null,null,null,null,null,null,null,null,null,null,null,null,null,null,null,null,null,"","","",null,null,null,null,null,null,null,null,null,null,null,"","","","",0,"",0,1.9999999999999999E-6,"",9.9999999999999995E-7,"",null,null,null,null,null,null,null,null,null,null,"  "]
[null,"Berechnungsmodus bei Ringgleichheit in der Einzelwertung",null,null,null,null,"","",null,null,null,null,null,null,null,null,null,null,null,null,null,null,null,null,null,null,null,null,null,null,null,"","","",null,null,null,null,null,null,null,null,null,null,null,"","","","",0,"",0,1.9999999999999999E-6,"",9.9999999999999995E-7,"",null,null,null,null,null,null,null,null,null,null,"  "]
[null,null,null,null,null,null,"","",null,null,null,null,null,null,null,null,null,null,null,null,null,null,null,null,null,null,null,null,null,null,null,"","","",null,null,null,null,null,null,null,null,null,null,null,"","","","",0,"",0,1.9999999999999999E-6,"",9.9999999999999995E-7,"",null,null,null,null,null,null,null,null,null,null,"  "]
[null,null,null,1,null,null,"","",null,null,null,null,null,null,null,null,null,null,null,null,null,null,null,null,null,null,null,null,null,null,null,"","","",null,null,null,null,null,null,null,null,null,null,null,"","","","",0,"",0,1.9999999999999999E-6,"",9.9999999999999995E-7,"",null,null,null,null,null,null,null,null,null,null,"  "]
[null,"1 = Ges. dann bester Satz\n2= Ges. damm letzter Satz gem. DSB",null,null,null,null,"","",null,null,null,null,null,null,null,null,null,null,null,null,null,null,null,null,null,null,null,null,null,null,null,"","","",null,null,null,null,null,null,null,null,null,null,null,"","","","",0,"",0,1.9999999999999999E-6,"",9.9999999999999995E-7,"",null,null,null,null,null,null,null,null,null,null,"  "]
[null,null,null,null,null,null,"","",null,null,null,null,null,null,null,null,null,null,null,null,null,null,null,null,null,null,null,null,null,null,null,"","","",null,null,null,null,null,null,null,null,null,null,null,"","","","",0,"",0,1.9999999999999999E-6,"",9.9999999999999995E-7,"",null,null,null,null,null,null,null,null,null,null,"  "]
[null,null,null,null,null,null,"","",null,null,null,null,null,null,null,null,null,null,null,null,null,null,null,null,null,null,null,null,null,null,null,"","","",null,null,null,null,null,null,null,null,null,null,null,"","","","",0,"",0,1.9999999999999999E-6,"",9.9999999999999995E-7,"",null,null,null,null,null,null,null,null,null,null,"  "]
[null,"Version:",null,"1.4.2",null,null,"","",null,null,null,null,null,null,null,null,null,null,null,null,null,null,null,null,null,null,null,null,null,null,null,"","","",null,null,null,null,null,null,null,null,null,null,null,"","","","",0,"",0,1.9999999999999999E-6,"",9.9999999999999995E-7,"",null,null,null,null,null,null,null,null,null,null,"  "]
[null,null,null,null,null,null,"","",null,null,null,null,null,null,null,null,null,null,null,null,null,null,null,null,null,null,null,null,null,null,null,"","","",null,null,null,null,null,null,null,null,null,null,null,"","","","",0,"",0,1.9999999999999999E-6,"",9.9999999999999995E-7,"",null,null,null,null,null,null,null,null,null,null,"  "]
[null,null,null,null,null,null,"","",null,null,null,null,null,null,null,null,null,null,null,null,null,null,null,null,null,null,null,null,null,null,null,"","","",null,null,null,null,null,null,null,null,null,null,null,"","","","",0,"",0,1.9999999999999999E-6,"",9.9999999999999995E-7,"",null,null,null,null,null,null,null,null,null,null,"  "]
[null,null,null,null,null,null,"","",null,null,null,null,null,null,null,null,null,null,null,null,null,null,null,null,null,null,null,null,null,null,null,"","","",null,null,null,null,null,null,null,null,null,null,null,"","","","",0,"",0,1.9999999999999999E-6,"",9.9999999999999995E-7,"",null,null,null,null,null,null,null,null,null,null,"  "]
[null,null,null,null,null,null,"","",null,null,null,null,null,null,null,null,null,null,null,null,null,null,null,null,null,null,null,null,null,null,null,"","","",null,null,null,null,null,null,null,null,null,null,null,"","","","",0,"",0,1.9999999999999999E-6,"",9.9999999999999995E-7,"",null,null,null,null,null,null,null,null,null,null,"  "]
[null,null,null,null,null,null,"","",null,null,null,null,null,null,null,null,null,null,null,null,null,null,null,null,null,null,null,null,null,null,null,"","","",null,null,null,null,null,null,null,null,null,null,null,"","","","",0,"",0,1.9999999999999999E-6,"",9.9999999999999995E-7,"",null,null,null,null,null,null,null,null,null,null,"  "]
[null,null,null,null,null,null,"","",null,null,null,null,null,null,null,null,null,null,null,null,null,null,null,null,null,null,null,null,null,null,null,"","","",null,null,null,null,null,null,null,null,null,null,null,"","","","",0,"",0,1.9999999999999999E-6,"",9.9999999999999995E-7,"",null,null,null,null,null,null,null,null,null,null,"  "]
[null,null,null,null,null,null,"","",null,null,null,null,null,null,null,null,null,null,null,null,null,null,null,null,null,null,null,null,null,null,null,"","","",null,null,null,null,null,null,null,null,null,null,null,"","","","",0,"",0,1.9999999999999999E-6,"",9.9999999999999995E-7,"",null,null,null,null,null,null,null,null,null,null,"  "]
[null,null,null,null,null,null,"","",null,null,null,null,null,null,null,null,null,null,null,null,null,null,null,null,null,null,null,null,null,null,null,"","","",null,null,null,null,null,null,null,null,null,null,null,"","","","",0,"",0,1.9999999999999999E-6,"",9.9999999999999995E-7,"",null,null,null,null,null,null,null,null,null,null,"  "]
[null,null,null,null,null,null,"","",null,null,null,null,null,null,null,null,null,null,null,null,null,null,null,null,null,null,null,null,null,null,null,"","","",null,null,null,null,null,null,null,null,null,null,null,"","","","",0,"",0,1.9999999999999999E-6,"",9.9999999999999995E-7,"",null,null,null,null,null,null,null,null,null,null,"  "]
[null,null,null,null,null,null,"","",null,null,null,null,null,null,null,null,null,null,null,null,null,null,null,null,null,null,null,null,null,null,null,"","","",null,null,null,null,null,null,null,null,null,null,null,"","","","",0,"",0,1.9999999999999999E-6,"",9.9999999999999995E-7,"",null,null,null,null,null,null,null,null,null,null,"  "]
[null,null,null,null,null,null,"","",null,null,null,null,null,null,null,null,null,null,null,null,null,null,null,null,null,null,null,null,null,null,null,"","","",null,null,null,null,null,null,null,null,null,null,null,"","","","",0,"",0,1.9999999999999999E-6,"",9.9999999999999995E-7,"",null,null,null,null,null,null,null,null,null,null,"  "]
[null,null,null,null,null,null,"","",null,null,null,null,null,null,null,null,null,null,null,null,null,null,null,null,null,null,null,null,null,null,null,"","","",null,null,null,null,null,null,null,null,null,null,null,"","","","",0,"",0,1.9999999999999999E-6,"",9.9999999999999995E-7,"",null,null,null,null,null,null,null,null,null,null,"  "]
[null,null,null,null,null,null,"","",null,null,null,null,null,null,null,null,null,null,null,null,null,null,null,null,null,null,null,null,null,null,null,"","","",null,null,null,null,null,null,null,null,null,null,null,"","","","",0,"",0,1.9999999999999999E-6,"",9.9999999999999995E-7,"",null,null,null,null,null,null,null,null,null,null,"  "]
[null,null,null,null,null,null,"","",null,null,null,null,null,null,null,null,null,null,null,null,null,null,null,null,null,null,null,null,null,null,null,"","","",null,null,null,null,null,null,null,null,null,null,null,"","","","",0,"",0,1.9999999999999999E-6,"",9.9999999999999995E-7,"",null,null,null,null,null,null,null,null,null,null,"  "]
[null,null,null,null,null,null,"","",null,null,null,null,null,null,null,null,null,null,null,null,null,null,null,null,null,null,null,null,null,null,null,"","","",null,null,null,null,null,null,null,null,null,null,null,"","","","",0,"",0,1.9999999999999999E-6,"",9.9999999999999995E-7,"",null,null,null,null,null,null,null,null,null,null,"  "]
[null,null,null,null,null,null,"","",null,null,null,null,null,null,null,null,null,null,null,null,null,null,null,null,null,null,null,null,null,null,null,"","","",null,null,null,null,null,null,null,null,null,null,null,"","","","",0,"",0,1.9999999999999999E-6,"",9.9999999999999995E-7,"",null,null,null,null,null,null,null,null,null,null,"  "]
[null,null,null,null,null,null,"","",null,null,null,null,null,null,null,null,null,null,null,null,null,null,null,null,null,null,null,null,null,null,null,"","","",null,null,null,null,null,null,null,null,null,null,null,"","","","",0,"",0,1.9999999999999999E-6,"",9.9999999999999995E-7,"",null,null,null,null,null,null,null,null,null,null,"  "]
[null,null,null,null,null,null,"","",null,null,null,null,null,null,null,null,null,null,null,null,null,null,null,null,null,null,null,null,null,null,null,"","","",null,null,null,null,null,null,null,null,null,null,null,"","","","",0,"",0,1.9999999999999999E-6,"",9.9999999999999995E-7,"",null,null,null,null,null,null,null,null,null,null,"  "]
[null,null,null,null,null,null,{"$f":"IFERROR(IF(I67=\"\",\"\",IF($G$1=1,BD67,BB67)),\"??\")","v":""},{"$f":"AH67","v":""},null,null,null,null,null,null,null,null,null,null,null,null,null,null,null,null,null,null,null,null,null,null,null,{"$f":"IF(I67=\"\",\"\",SUM(L67:U67))","v":""},{"$f":"IF(I67=\"\",\"\",SUM(V67:AE67))","v":""},{"$f":"IF(I67=\"\",\"\",AF67+AG67)","v":""},null,null,null,null,null,null,null,null,null,null,null,"","","","",0,{"$f":"IF(AT67=\"\",\"\",LARGE(AF67:AG67,1))","v":""},0,1.9999999999999999E-6,"",9.9999999999999995E-7,"",null,null,null,null,null,null,null,null,null,null,{"$f":"CONCATENATE(I67,\" \",J67,\" \",K67)","v":"  "}]
[null,null,null,null,null,null,"","",null,null,null,null,null,null,null,null,null,null,null,null,null,null,null,null,null,null,null,null,null,null,null,"","","",null,null,null,null,null,null,null,null,null,null,null,{"$f":"IFERROR(IF(OR($M$1=K68,$M$1=\"\"),(AH68*400000000000000)+(AG68*2500000000000)+(AJ68)+(AK68)+(AL68)+(AM68)+(AN68)+(AO68+AO68+AP68+AQ68+AR68+AS68)),\"\")","v":""},{"$f":"IF(I68=\"\",\"\",_xlfn.RANK.EQ($AT$3:$AT$103,$AT$3:$AT$103,0))","v":""},{"$f":"IFERROR(IF(OR($M$1=K68,$M$1=\"\"),(AH68*4000000000000)+LARGE(AF68:AG68,1)*2500000000+(AJ68+AK68+AL68+AM68+AN68+AO68+AO68+AP68+AQ68+AR68+AS68)),\"\")","v":""},{"$f":"IF(I68=\"\",\"\",_xlfn.RANK.EQ($AV$3:$AV$103,$AV$3:$AV$103,0))","v":""},{"$f":"SUM(AJ68:AS68)","v":0},"",{"$f":"SUM(AJ68:AS68)","v":0},{"$f":"SUBTOTAL(9,AT68,$BA$1)","v":1.9999999999999999E-6},{"$f":"IF(I68=\"\",\"\",_xlfn.RANK.EQ($BA$3:$BA$103,$BA$3:$BA$103,0))","v":""},9.9999999999999995E-7,{"$f":"IF(I68=\"\",\"\",_xlfn.RANK.EQ($BC$3:$BC$103,$BC$3:$BC$103,0))","v":""},null,null,null,null,null,null,null,null,null,null,"  "]
[null,null,null,null,null,null,"","",null,null,null,null,null,null,null,null,null,null,null,null,null,null,null,null,null,null,null,null,null,null,null,"","","",null,null,null,null,null,null,null,null,null,null,null,"","","","",0,"",0,1.9999999999999999E-6,"",{"$f":"SUBTOTAL(9,AV69,$BC$1)","v":9.9999999999999995E-7},"",null,null,null,null,null,null,null,null,null,null,"  "]
[null,null,null,null,null,null,"","",null,null,null,null,null,null,null,null,null,null,null,null,null,null,null,null,null,null,null,null,null,null,null,"","","",null,null,null,null,null,null,null,null,null,null,null,"","","","",0,"",0,1.9999999999999999E-6,"",9.9999999999999995E-7,"",null,null,null,null,null,null,null,null,null,null,"  "]
[null,null,null,null,null,null,"","",null,null,null,null,null,null,null,null,null,null,null,null,null,null,null,null,null,null,null,null,null,null,null,"","","",null,null,null,null,null,null,null,null,null,null,null,"","","","",0,"",0,1.9999999999999999E-6,"",9.9999999999999995E-7,"",null,null,null,null,null,null,null,null,null,null,"  "]
[null,null,null,null,null,null,"","",null,null,null,null,null,null,null,null,null,null,null,null,null,null,null,null,null,null,null,null,null,null,null,"","","",null,null,null,null,null,null,null,null,null,null,null,"","","","",0,"",0,1.9999999999999999E-6,"",9.9999999999999995E-7,"",null,null,null,null,null,null,null,null,null,null,"  "]
[null,null,null,null,null,null,"","",null,null,null,null,null,null,null,null,null,null,null,null,null,null,null,null,null,null,null,null,null,null,null,"","","",null,null,null,null,null,null,null,null,null,null,null,"","","","",0,"",0,1.9999999999999999E-6,"",9.9999999999999995E-7,"",null,null,null,null,null,null,null,null,null,null,"  "]
[null,null,null,null,null,null,"","",null,null,null,null,null,null,null,null,null,null,null,null,null,null,null,null,null,null,null,null,null,null,null,"","","",null,null,null,null,null,null,null,null,null,null,null,"","","","",0,"",0,1.9999999999999999E-6,"",9.9999999999999995E-7,"",null,null,null,null,null,null,null,null,null,null,"  "]
[null,null,null,null,null,null,"","",null,null,null,null,null,null,null,null,null,null,null,null,null,null,null,null,null,null,null,null,null,null,null,"","","",null,null,null,null,null,null,null,null,null,null,null,"","","","",0,"",0,1.9999999999999999E-6,"",9.9999999999999995E-7,"",null,null,null,null,null,null,null,null,null,null,"  "]
[null,null,null,null,null,null,"","",null,null,null,null,null,null,null,null,null,null,null,null,null,null,null,null,null,null,null,null,null,null,null,"","","",null,null,null,null,null,null,null,null,null,null,null,"","","","",0,"",0,1.9999999999999999E-6,"",9.9999999999999995E-7,"",null,null,null,null,null,null,null,null,null,null,"  "]
[null,null,null,null,null,null,"","",null,null,null,null,null,null,null,null,null,null,null,null,null,null,null,null,null,null,null,null,null,null,null,"","","",null,null,null,null,null,null,null,null,null,null,null,"","","","",0,"",0,1.9999999999999999E-6,"",9.9999999999999995E-7,"",null,null,null,null,null,null,null,null,null,null,"  "]
[null,null,null,null,null,null,"","",null,null,null,null,null,null,null,null,null,null,null,null,null,null,null,null,null,null,null,null,null,null,null,"","","",null,null,null,null,null,null,null,null,null,null,null,"","","","",0,"",0,1.9999999999999999E-6,"",9.9999999999999995E-7,"",null,null,null,null,null,null,null,null,null,null,"  "]
[null,null,null,null,null,null,"","",null,null,null,null,null,null,null,null,null,null,null,null,null,null,null,null,null,null,null,null,null,null,null,"","","",null,null,null,null,null,null,null,null,null,null,null,"","","","",0,"",0,1.9999999999999999E-6,"",9.9999999999999995E-7,"",null,null,null,null,null,null,null,null,null,null,"  "]
[null,null,null,null,null,null,"","",null,null,null,null,null,null,null,null,null,null,null,null,null,null,null,null,null,null,null,null,null,null,null,"","","",null,null,null,null,null,null,null,null,null,null,null,"","","","",0,"",0,1.9999999999999999E-6,"",9.9999999999999995E-7,"",null,null,null,null,null,null,null,null,null,null,"  "]
[null,null,null,null,null,null,"","",null,null,null,null,null,null,null,null,null,null,null,null,null,null,null,null,null,null,null,null,null,null,null,"","","",null,null,null,null,null,null,null,null,null,null,null,"","","","",0,"",0,1.9999999999999999E-6,"",9.9999999999999995E-7,"",null,null,null,null,null,null,null,null,null,null,"  "]
[null,null,null,null,null,null,"","",null,null,null,null,null,null,null,null,null,null,null,null,null,null,null,null,null,null,null,null,null,null,null,"","","",null,null,null,null,null,null,null,null,null,null,null,"","","","",0,"",0,1.9999999999999999E-6,"",9.9999999999999995E-7,"",null,null,null,null,null,null,null,null,null,null,"  "]
[null,null,null,null,null,null,"","",null,null,null,null,null,null,null,null,null,null,null,null,null,null,null,null,null,null,null,null,null,null,null,"","","",null,null,null,null,null,null,null,null,null,null,null,"","","","",0,"",0,1.9999999999999999E-6,"",9.9999999999999995E-7,"",null,null,null,null,null,null,null,null,null,null,"  "]
[null,null,null,null,null,null,"","",null,null,null,null,null,null,null,null,null,null,null,null,null,null,null,null,null,null,null,null,null,null,null,"","","",null,null,null,null,null,null,null,null,null,null,null,"","","","",0,"",0,1.9999999999999999E-6,"",9.9999999999999995E-7,"",null,null,null,null,null,null,null,null,null,null,"  "]
[null,null,null,null,null,null,"","",null,null,null,null,null,null,null,null,null,null,null,null,null,null,null,null,null,null,null,null,null,null,null,"","","",null,null,null,null,null,null,null,null,null,null,null,"","","","",0,"",0,1.9999999999999999E-6,"",9.9999999999999995E-7,"",null,null,null,null,null,null,null,null,null,null,"  "]
[null,null,null,null,null,null,"","",null,null,null,null,null,null,null,null,null,null,null,null,null,null,null,null,null,null,null,null,null,null,null,"","","",null,null,null,null,null,null,null,null,null,null,null,"","","","",0,"",0,1.9999999999999999E-6,"",9.9999999999999995E-7,"",null,null,null,null,null,null,null,null,null,null,"  "]
[null,null,null,null,null,null,"","",null,null,null,null,null,null,null,null,null,null,null,null,null,null,null,null,null,null,null,null,null,null,null,"","","",null,null,null,null,null,null,null,null,null,null,null,"","","","",0,"",0,1.9999999999999999E-6,"",9.9999999999999995E-7,"",null,null,null,null,null,null,null,null,null,null,"  "]
[null,null,null,null,null,null,"","",null,null,null,null,null,null,null,null,null,null,null,null,null,null,null,null,null,null,null,null,null,null,null,"","","",null,null,null,null,null,null,null,null,null,null,null,"","","","",0,"",0,1.9999999999999999E-6,"",9.9999999999999995E-7,"",null,null,null,null,null,null,null,null,null,null,"  "]
[null,null,null,null,null,null,"","",null,null,null,null,null,null,null,null,null,null,null,null,null,null,null,null,null,null,null,null,null,null,null,"","","",null,null,null,null,null,null,null,null,null,null,null,"","","","",0,"",0,1.9999999999999999E-6,"",9.9999999999999995E-7,"",null,null,null,null,null,null,null,null,null,null,"  "]
[null,null,null,null,null,null,"","",null,null,null,null,null,null,null,null,null,null,null,null,null,null,null,null,null,null,null,null,null,null,null,"","","",null,null,null,null,null,null,null,null,null,null,null,"","","","",0,"",0,1.9999999999999999E-6,"",9.9999999999999995E-7,"",null,null,null,null,null,null,null,null,null,null,"  "]
[null,null,null,null,null,null,"","",null,null,null,null,null,null,null,null,null,null,null,null,null,null,null,null,null,null,null,null,null,null,null,"","","",null,null,null,null,null,null,null,null,null,null,null,"","","","",0,"",0,1.9999999999999999E-6,"",9.9999999999999995E-7,"",null,null,null,null,null,null,null,null,null,null,"  "]
[null,null,null,null,null,null,"","",null,null,null,null,null,null,null,null,null,null,null,null,null,null,null,null,null,null,null,null,null,null,null,"","","",null,null,null,null,null,null,null,null,null,null,null,"","","","",0,"",0,1.9999999999999999E-6,"",9.9999999999999995E-7,"",null,null,null,null,null,null,null,null,null,null,"  "]
[null,null,null,null,null,null,"","",null,null,null,null,null,null,null,null,null,null,null,null,null,null,null,null,null,null,null,null,null,null,null,"","","",null,null,null,null,null,null,null,null,null,null,null,"","","","",0,"",0,1.9999999999999999E-6,"",9.9999999999999995E-7,"",null,null,null,null,null,null,null,null,null,null,"  "]
[null,null,null,null,null,null,"","",null,null,null,null,null,null,null,null,null,null,null,null,null,null,null,null,null,null,null,null,null,null,null,"","","",null,null,null,null,null,null,null,null,null,null,null,"","","","",0,"",0,1.9999999999999999E-6,"",9.9999999999999995E-7,"",null,null,null,null,null,null,null,null,null,null,"  "]
[null,null,null,null,null,null,"","",null,null,null,null,null,null,null,null,null,null,null,null,null,null,null,null,null,null,null,null,null,null,null,"","","",null,null,null,null,null,null,null,null,null,null,null,"","","","",0,"",0,1.9999999999999999E-6,"",9.9999999999999995E-7,"",null,null,null,null,null,null,null,null,null,null,"  "]
[null,null,null,null,null,null,"","",null,null,null,null,null,null,null,null,null,null,null,null,null,null,null,null,null,null,null,null,null,null,null,"","","",null,null,null,null,null,null,null,null,null,null,null,"","","","",0,"",0,1.9999999999999999E-6,"",9.9999999999999995E-7,"",null,null,null,null,null,null,null,null,null,null,"  "]
[null,null,null,null,null,null,"","",null,null,null,null,null,null,null,null,null,null,null,null,null,null,null,null,null,null,null,null,null,null,null,"","","",null,null,null,null,null,null,null,null,null,null,null,"","","","",0,"",0,1.9999999999999999E-6,"",9.9999999999999995E-7,"",null,null,null,null,null,null,null,null,null,null,"  "]
[null,null,null,null,null,null,"","",null,null,null,null,null,null,null,null,null,null,null,null,null,null,null,null,null,null,null,null,null,null,null,"","","",null,null,null,null,null,null,null,null,null,null,null,"","","","",0,"",0,1.9999999999999999E-6,"",9.9999999999999995E-7,"",null,null,null,null,null,null,null,null,null,null,"  "]
[null,null,null,null,null,null,"","",null,null,null,null,null,null,null,null,null,null,null,null,null,null,null,null,null,null,null,null,null,null,null,"","",{"$f":"IF(I99=\"\",\"\",AF99+AG99)","v":""},null,null,null,null,null,null,null,null,null,null,null,"","","","",0,"",0,1.9999999999999999E-6,"",9.9999999999999995E-7,"",null,null,null,null,null,null,null,null,null,null,"  "]
[null,null,null,null,null,null,"","",null,null,null,null,null,null,null,null,null,null,null,null,null,null,null,null,null,null,null,null,null,null,null,"","","",null,null,null,null,null,null,null,null,null,null,null,"","","","",0,"",0,1.9999999999999999E-6,"",9.9999999999999995E-7,"",null,null,null,null,null,null,null,null,null,null,"  "]
[null,null,null,null,null,null,"","",null,null,null,null,null,null,null,null,null,null,null,null,null,null,null,null,null,null,null,null,null,null,null,"","","",null,null,null,null,null,null,null,null,null,null,null,"","","","",0,"",0,1.9999999999999999E-6,"",9.9999999999999995E-7,"",null,null,null,null,null,null,null,null,null,null,"  "]
[null,null,null,null,null,null,"","",null,null,null,null,null,null,null,null,null,null,null,null,null,null,null,null,null,null,null,null,null,null,null,"","","",null,null,null,null,null,null,null,null,null,null,null,"","","","",0,"",0,1.9999999999999999E-6,"",9.9999999999999995E-7,"",null,null,null,null,null,null,null,null,null,null,"  "]

{"sheet":"Mannschaftswertung","index":1,"n_rows":21,"n_cols":3,"rows_kept":21,"cut":false,"hidden":false,"merged":[[0,0,0,2]]}
[{"$f":"Schießkladde!H1","v":"Vergleichsschießen Bollersen- Hassel"}]
["Mannschaftswertung"]
["Platz","Ring","Verein"]
[1,0,"Bollersen"]
[1,0,"Hassel"]
["",""]
["",""]
["",""]
["",""]
["",""]
["",""]
["",""]
["",""]
["",""]
["",""]
["",""]
["",""]
["",""]
["",""]
["",""]
[null,null,"Gäste"]

{"sheet":"Einzelwertung ","index":2,"n_rows":104,"n_cols":47,"rows_kept":104,"cut":false,"hidden":false,"merged":[[1,1,1,5],[2,8,2,13],[0,1,0,8]]}
[null,{"$f":"Schießkladde!H1","v":"Vergleichsschießen Bollersen- Hassel"}]
[null,"Einzelwertung"]
[null,{"$f":"IF(Schießkladde!G1=1,\"Gesamt dann bester Satz\",\"Gem. Sportordnung, Gesamt dann letzter Satz\")","v":"Gesamt dann bester Satz"}]
[null,"Platz","ges.","Name","Vorname","Verein",1,2,3,4,5,6,7,8,9,10,11,12,13,14,15,16,17,18,19,20,"S1","S2","ges.",null,"Stechen",null,null,null,null,null,null,null,null,null,null,null,null,null,"ges."]
[1,"","",null,null,null,0,null,null,null,null,null,null,null,null,null,null,null,null,null,null,null,null,null,null,null,"","","",null,null,null,null,null,null,null,null,null,null,null,"","","","",0,"",0]
[2,"","",null,null,null,null,null,null,null,null,null,null,null,null,null,null,null,null,null,null,null,null,null,null,null,"","","",null,null,null,null,null,null,null,null,null,null,null,"","","","",0,"",0]
[3,"","",null,null,null,null,null,null,null,null,null,null,null,null,null,null,null,null,null,null,null,null,null,null,null,"","","",null,null,null,null,null,null,null,null,null,null,null,"","","","",0,"",0]
[4,"","",null,null,null,null,null,null,null,null,null,null,null,null,null,null,null,null,null,null,null,null,null,null,null,"","","",null,null,null,null,null,null,null,null,null,null,null,"","","","",0,"",0]
[5,"","",null,null,null,null,null,null,null,null,null,null,null,null,null,null,null,null,null,null,null,null,null,null,null,"","","",null,null,null,null,null,null,null,null,null,null,null,"","","","",0,"",0]
[6,"","",null,null,null,null,null,null,null,null,null,null,null,null,null,null,null,null,null,null,null,null,null,null,null,"","","",null,null,null,null,null,null,null,null,null,null,null,"","","","",0,"",0]
[7,"","",null,null,null,null,null,null,null,null,null,null,null,null,null,null,null,null,null,null,null,null,null,null,null,"","","",null,null,null,null,null,null,null,null,null,null,null,"","","","",0,"",0]
[8,"","",null,null,null,null,null,null,null,null,null,null,null,null,null,null,null,null,null,null,null,null,null,null,null,"","","",null,null,null,null,null,null,null,null,null,null,null,"","","","",0,"",0]
[9,"","",null,null,null,null,null,null,null,null,null,null,null,null,null,null,null,null,null,null,null,null,null,null,null,"","","",null,null,null,null,null,null,null,null,null,null,null,"","","","",0,"",0]
[10,"","",null,null,null,null,null,null,null,null,null,null,null,null,null,null,null,null,null,null,null,null,null,null,null,"","","",null,null,null,null,null,null,null,null,null,null,null,"","","","",0,"",0]
[11,"","",null,null,null,null,null,null,null,null,null,null,null,null,null,null,null,null,null,null,null,null,null,null,null,"","","",null,null,null,null,null,null,null,null,null,null,null,"","","","",0,"",0]
[12,"","",null,null,null,null,null,null,null,null,null,null,null,null,null,null,null,null,null,null,null,null,null,null,null,"","","",null,null,null,null,null,null,null,null,null,null,null,"","","","",0,"",0]
[13,"","",null,null,null,null,null,null,null,null,null,null,null,null,null,null,null,null,null,null,null,null,null,null,null,"","","",null,null,null,null,null,null,null,null,null,null,null,"","","","",0,"",0]
[14,"","",null,null,null,null,null,null,null,null,null,null,null,null,null,null,null,null,null,null,null,null,null,null,null,"","","",null,null,null,null,null,null,null,null,null,null,null,"","","","",0,"",0]
[15,"","",null,null,null,null,null,null,null,null,null,null,null,null,null,null,null,null,null,null,null,null,null,null,null,"","","",null,null,null,null,null,null,null,null,null,null,null,"","","","",0,"",0]
[16,"","",null,null,null,null,null,null,null,null,null,null,null,null,null,null,null,null,null,null,null,null,null,null,null,"","","",null,null,null,null,null,null,null,null,null,null,null,"","","","",0,"",0]
[17,"","",null,null,null,null,null,null,null,null,null,null,null,null,null,null,null,null,null,null,null,null,null,null,null,"","","",null,null,null,null,null,null,null,null,null,null,null,"","","","",0,"",0]
[18,"","",null,null,null,null,null,null,null,null,null,null,null,null,null,null,null,null,null,null,null,null,null,null,null,"","","",null,null,null,null,null,null,null,null,null,null,null,"","","","",0,"",0]
[19,"","",null,null,null,null,null,null,null,null,null,null,null,null,null,null,null,null,null,null,null,null,null,null,null,"","","",null,null,null,null,null,null,null,null,null,null,null,"","","","",0,"",0]
[20,"","",null,null,null,null,null,null,null,null,null,null,null,null,null,null,null,null,null,null,null,null,null,null,null,"","","",null,null,null,null,null,null,null,null,null,null,null,"","","","",0,"",0]
[21,"","",null,null,null,null,null,null,null,null,null,null,null,null,null,null,null,null,null,null,null,null,null,null,null,"","","",null,null,null,null,null,null,null,null,null,null,null,"","","","",0,"",0]
[22,"","",null,null,null,null,null,null,null,null,null,null,null,null,null,null,null,null,null,null,null,null,null,null,null,"","","",null,null,null,null,null,null,null,null,null,null,null,"","","","",0,"",0]
[23,"","",null,null,null,null,null,null,null,null,null,null,null,null,null,null,null,null,null,null,null,null,null,null,null,"","","",null,null,null,null,null,null,null,null,null,null,null,"","","","",0,"",0]
[24,"","",null,null,null,null,null,null,null,null,null,null,null,null,null,null,null,null,null,null,null,null,null,null,null,"","","",null,null,null,null,null,null,null,null,null,null,null,"","","","",0,"",0]
[25,"","",null,null,null,null,null,null,null,null,null,null,null,null,null,null,null,null,null,null,null,null,null,null,null,"","","",null,null,null,null,null,null,null,null,null,null,null,"","","","",0,"",0]
[26,"","",null,null,null,null,null,null,null,null,null,null,null,null,null,null,null,null,null,null,null,null,null,null,null,"","","",null,null,null,null,null,null,null,null,null,null,null,"","","","",0,"",0]
[27,"","",null,null,null,null,null,null,null,null,null,null,null,null,null,null,null,null,null,null,null,null,null,null,null,"","","",null,null,null,null,null,null,null,null,null,null,null,"","","","",0,"",0]
[28,"","",null,null,null,null,null,null,null,null,null,null,null,null,null,null,null,null,null,null,null,null,null,null,null,"","","",null,null,null,null,null,null,null,null,null,null,null,"","","","",0,"",0]
[29,"","",null,null,null,null,null,null,null,null,null,null,null,null,null,null,null,null,null,null,null,null,null,null,null,"","","",null,null,null,null,null,null,null,null,null,null,null,"","","","",0,"",0]
[30,"","",null,null,null,null,null,null,null,null,null,null,null,null,null,null,null,null,null,null,null,null,null,null,null,"","","",null,null,null,null,null,null,null,null,null,null,null,"","","","",0,"",0]
[31,"","",null,null,null,null,null,null,null,null,null,null,null,null,null,null,null,null,null,null,null,null,null,null,null,"","","",null,null,null,null,null,null,null,null,null,null,null,"","","","",0,"",0]
[32,"","",null,null,null,null,null,null,null,null,null,null,null,null,null,null,null,null,null,null,null,null,null,null,null,"","","",null,null,null,null,null,null,null,null,null,null,null,"","","","",0,"",0]
[33,"","",null,null,null,null,null,null,null,null,null,null,null,null,null,null,null,null,null,null,null,null,null,null,null,"","","",null,null,null,null,null,null,null,null,null,null,null,"","","","",0,"",0]
[34,"","",null,null,null,null,null,null,null,null,null,null,null,null,null,null,null,null,null,null,null,null,null,null,null,"","","",null,null,null,null,null,null,null,null,null,null,null,"","","","",0,"",0]
[35,"","",null,null,null,null,null,null,null,null,null,null,null,null,null,null,null,null,null,null,null,null,null,null,null,"","","",null,null,null,null,null,null,null,null,null,null,null,"","","","",0,"",0]
[36,"","",null,null,null,null,null,null,null,null,null,null,null,null,null,null,null,null,null,null,null,null,null,null,null,"","","",null,null,null,null,null,null,null,null,null,null,null,"","","","",0,"",0]
[37,"","",null,null,null,null,null,null,null,null,null,null,null,null,null,null,null,null,null,null,null,null,null,null,null,"","","",null,null,null,null,null,null,null,null,null,null,null,"","","","",0,"",0]
[38,"","",null,null,null,null,null,null,null,null,null,null,null,null,null,null,null,null,null,null,null,null,null,null,null,"","","",null,null,null,null,null,null,null,null,null,null,null,"","","","",0,"",0]
[39,"","",null,null,null,null,null,null,null,null,null,null,null,null,null,null,null,null,null,null,null,null,null,null,null,"","","",null,null,null,null,null,null,null,null,null,null,null,"","","","",0,"",0]
[40,"","",null,null,null,null,null,null,null,null,null,null,null,null,null,null,null,null,null,null,null,null,null,null,null,"","","",null,null,null,null,null,null,null,null,null,null,null,"","","","",0,"",0]
[41,"","",null,null,null,null,null,null,null,null,null,null,null,null,null,null,null,null,null,null,null,null,null,null,null,"","","",null,null,null,null,null,null,null,null,null,null,null,"","","","",0,"",0]
[42,"","",null,null,null,null,null,null,null,null,null,null,null,null,null,null,null,null,null,null,null,null,null,null,null,"","","",null,null,null,null,null,null,null,null,null,null,null,"","","","",0,"",0]
[43,"","",null,null,null,null,null,null,null,null,null,null,null,null,null,null,null,null,null,null,null,null,null,null,null,"","","",null,null,null,null,null,null,null,null,null,null,null,"","","","",0,"",0]
[44,"","",null,null,null,null,null,null,null,null,null,null,null,null,null,null,null,null,null,null,null,null,null,null,null,"","","",null,null,null,null,null,null,null,null,null,null,null,"","","","",0,"",0]
[45,"","",null,null,null,null,null,null,null,null,null,null,null,null,null,null,null,null,null,null,null,null,null,null,null,"","","",null,null,null,null,null,null,null,null,null,null,null,"","","","",0,"",0]
[46,"","",null,null,null,null,null,null,null,null,null,null,null,null,null,null,null,null,null,null,null,null,null,null,null,"","","",null,null,null,null,null,null,null,null,null,null,null,"","","","",0,"",0]
[47,"","",null,null,null,null,null,null,null,null,null,null,null,null,null,null,null,null,null,null,null,null,null,null,null,"","","",null,null,null,null,null,null,null,null,null,null,null,"","","","",0,"",0]
[48,"","",null,null,null,null,null,null,null,null,null,null,null,null,null,null,null,null,null,null,null,null,null,null,null,"","","",null,null,null,null,null,null,null,null,null,null,null,"","","","",0,"",0]
[49,"","",null,null,null,null,null,null,null,null,null,null,null,null,null,null,null,null,null,null,null,null,null,null,null,"","","",null,null,null,null,null,null,null,null,null,null,null,"","","","",0,"",0]
[50,"","",null,null,null,null,null,null,null,null,null,null,null,null,null,null,null,null,null,null,null,null,null,null,null,"","","",null,null,null,null,null,null,null,null,null,null,null,"","","","",0,"",0]
[51,"","",null,null,null,null,null,null,null,null,null,null,null,null,null,null,null,null,null,null,null,null,null,null,null,"","","",null,null,null,null,null,null,null,null,null,null,null,"","","","",0,"",0]
[52,"","",null,null,null,null,null,null,null,null,null,null,null,null,null,null,null,null,null,null,null,null,null,null,null,"","","",null,null,null,null,null,null,null,null,null,null,null,"","","","",0,"",0]
[53,"","",null,null,null,null,null,null,null,null,null,null,null,null,null,null,null,null,null,null,null,null,null,null,null,"","","",null,null,null,null,null,null,null,null,null,null,null,"","","","",0,"",0]
[54,"","",null,null,null,null,null,null,null,null,null,null,null,null,null,null,null,null,null,null,null,null,null,null,null,"","","",null,null,null,null,null,null,null,null,null,null,null,"","","","",0,"",0]
[55,"","",null,null,null,null,null,null,null,null,null,null,null,null,null,null,null,null,null,null,null,null,null,null,null,"","","",null,null,null,null,null,null,null,null,null,null,null,"","","","",0,"",0]
[56,"","",null,null,null,null,null,null,null,null,null,null,null,null,null,null,null,null,null,null,null,null,null,null,null,"","","",null,null,null,null,null,null,null,null,null,null,null,"","","","",0,"",0]
[57,"","",null,null,null,null,null,null,null,null,null,null,null,null,null,null,null,null,null,null,null,null,null,null,null,"","","",null,null,null,null,null,null,null,null,null,null,null,"","","","",0,"",0]
[58,"","",null,null,null,null,null,null,null,null,null,null,null,null,null,null,null,null,null,null,null,null,null,null,null,"","","",null,null,null,null,null,null,null,null,null,null,null,"","","","",0,"",0]
[59,"","",null,null,null,null,null,null,null,null,null,null,null,null,null,null,null,null,null,null,null,null,null,null,null,"","","",null,null,null,null,null,null,null,null,null,null,null,"","","","",0,"",0]
[60,"","",null,null,null,null,null,null,null,null,null,null,null,null,null,null,null,null,null,null,null,null,null,null,null,"","","",null,null,null,null,null,null,null,null,null,null,null,"","","","",0,"",0]
[61,"","",null,null,null,null,null,null,null,null,null,null,null,null,null,null,null,null,null,null,null,null,null,null,null,"","","",null,null,null,null,null,null,null,null,null,null,null,"","","","",0,"",0]
[62,"","",null,null,null,null,null,null,null,null,null,null,null,null,null,null,null,null,null,null,null,null,null,null,null,"","","",null,null,null,null,null,null,null,null,null,null,null,"","","","",0,"",0]
[63,"","",null,null,null,null,null,null,null,null,null,null,null,null,null,null,null,null,null,null,null,null,null,null,null,"","","",null,null,null,null,null,null,null,null,null,null,null,"","","","",0,"",0]
[64,"","",null,null,null,null,null,null,null,null,null,null,null,null,null,null,null,null,null,null,null,null,null,null,null,"","","",null,null,null,null,null,null,null,null,null,null,null,"","","","",0,"",0]
[65,"","",null,null,null,null,null,null,null,null,null,null,null,null,null,null,null,null,null,null,null,null,null,null,null,"","","",null,null,null,null,null,null,null,null,null,null,null,"","","","",0,"",0]
[66,"","",null,null,null,null,null,null,null,null,null,null,null,null,null,null,null,null,null,null,null,null,null,null,null,"","","",null,null,null,null,null,null,null,null,null,null,null,"","","","",0,"",0]
[67,"","",null,null,null,null,null,null,null,null,null,null,null,null,null,null,null,null,null,null,null,null,null,null,null,"","","",null,null,null,null,null,null,null,null,null,null,null,"","","","",0,"",0]
[68,"","",null,null,null,null,null,null,null,null,null,null,null,null,null,null,null,null,null,null,null,null,null,null,null,"","","",null,null,null,null,null,null,null,null,null,null,null,"","","","",0,"",0]
[69,"","",null,null,null,null,null,null,null,null,null,null,null,null,null,null,null,null,null,null,null,null,null,null,null,"","","",null,null,null,null,null,null,null,null,null,null,null,"","","","",0,"",0]
[70,"","",null,null,null,null,null,null,null,null,null,null,null,null,null,null,null,null,null,null,null,null,null,null,null,"","","",null,null,null,null,null,null,null,null,null,null,null,"","","","",0,"",0]
[71,"","",null,null,null,null,null,null,null,null,null,null,null,null,null,null,null,null,null,null,null,null,null,null,null,"","","",null,null,null,null,null,null,null,null,null,null,null,"","","","",0,"",0]
[72,"","",null,null,null,null,null,null,null,null,null,null,null,null,null,null,null,null,null,null,null,null,null,null,null,"","","",null,null,null,null,null,null,null,null,null,null,null,"","","","",0,"",0]
[73,"","",null,null,null,null,null,null,null,null,null,null,null,null,null,null,null,null,null,null,null,null,null,null,null,"","","",null,null,null,null,null,null,null,null,null,null,null,"","","","",0,"",0]
[74,"","",null,null,null,null,null,null,null,null,null,null,null,null,null,null,null,null,null,null,null,null,null,null,null,"","","",null,null,null,null,null,null,null,null,null,null,null,"","","","",0,"",0]
[75,"","",null,null,null,null,null,null,null,null,null,null,null,null,null,null,null,null,null,null,null,null,null,null,null,"","","",null,null,null,null,null,null,null,null,null,null,null,"","","","",0,"",0]
[76,"","",null,null,null,null,null,null,null,null,null,null,null,null,null,null,null,null,null,null,null,null,null,null,null,"","","",null,null,null,null,null,null,null,null,null,null,null,"","","","",0,"",0]
[77,"","",null,null,null,null,null,null,null,null,null,null,null,null,null,null,null,null,null,null,null,null,null,null,null,"","","",null,null,null,null,null,null,null,null,null,null,null,"","","","",0,"",0]
[78,"","",null,null,null,null,null,null,null,null,null,null,null,null,null,null,null,null,null,null,null,null,null,null,null,"","","",null,null,null,null,null,null,null,null,null,null,null,"","","","",0,"",0]
[79,"","",null,null,null,null,null,null,null,null,null,null,null,null,null,null,null,null,null,null,null,null,null,null,null,"","","",null,null,null,null,null,null,null,null,null,null,null,"","","","",0,"",0]
[80,"","",null,null,null,null,null,null,null,null,null,null,null,null,null,null,null,null,null,null,null,null,null,null,null,"","","",null,null,null,null,null,null,null,null,null,null,null,"","","","",0,"",0]
[81,"","",null,null,null,null,null,null,null,null,null,null,null,null,null,null,null,null,null,null,null,null,null,null,null,"","","",null,null,null,null,null,null,null,null,null,null,null,"","","","",0,"",0]
[82,"","",null,null,null,null,null,null,null,null,null,null,null,null,null,null,null,null,null,null,null,null,null,null,null,"","","",null,null,null,null,null,null,null,null,null,null,null,"","","","",0,"",0]
[83,"","",null,null,null,null,null,null,null,null,null,null,null,null,null,null,null,null,null,null,null,null,null,null,null,"","","",null,null,null,null,null,null,null,null,null,null,null,"","","","",0,"",0]
[84,"","",null,null,null,null,null,null,null,null,null,null,null,null,null,null,null,null,null,null,null,null,null,null,null,"","","",null,null,null,null,null,null,null,null,null,null,null,"","","","",0,"",0]
[85,"","",null,null,null,null,null,null,null,null,null,null,null,null,null,null,null,null,null,null,null,null,null,null,null,"","","",null,null,null,null,null,null,null,null,null,null,null,"","","","",0,"",0]
[86,"","",null,null,null,null,null,null,null,null,null,null,null,null,null,null,null,null,null,null,null,null,null,null,null,"","","",null,null,null,null,null,null,null,null,null,null,null,"","","","",0,"",0]
[87,"","",null,null,null,null,null,null,null,null,null,null,null,null,null,null,null,null,null,null,null,null,null,null,null,"","","",null,null,null,null,null,null,null,null,null,null,null,"","","","",0,"",0]
[88,"","",null,null,null,null,null,null,null,null,null,null,null,null,null,null,null,null,null,null,null,null,null,null,null,"","","",null,null,null,null,null,null,null,null,null,null,null,"","","","",0,"",0]
[89,"","",null,null,null,null,null,null,null,null,null,null,null,null,null,null,null,null,null,null,null,null,null,null,null,"","","",null,null,null,null,null,null,null,null,null,null,null,"","","","",0,"",0]
[90,"","",null,null,null,null,null,null,null,null,null,null,null,null,null,null,null,null,null,null,null,null,null,null,null,"","","",null,null,null,null,null,null,null,null,null,null,null,"","","","",0,"",0]
[91,"","",null,null,null,null,null,null,null,null,null,null,null,null,null,null,null,null,null,null,null,null,null,null,null,"","","",null,null,null,null,null,null,null,null,null,null,null,"","","","",0,"",0]
[92,"","",null,null,null,null,null,null,null,null,null,null,null,null,null,null,null,null,null,null,null,null,null,null,null,"","","",null,null,null,null,null,null,null,null,null,null,null,"","","","",0,"",0]
[93,"","",null,null,null,null,null,null,null,null,null,null,null,null,null,null,null,null,null,null,null,null,null,null,null,"","","",null,null,null,null,null,null,null,null,null,null,null,"","","","",0,"",0]
[94,"","",null,null,null,null,null,null,null,null,null,null,null,null,null,null,null,null,null,null,null,null,null,null,null,"","","",null,null,null,null,null,null,null,null,null,null,null,"","","","",0,"",0]
[95,"","",null,null,null,null,null,null,null,null,null,null,null,null,null,null,null,null,null,null,null,null,null,null,null,"","","",null,null,null,null,null,null,null,null,null,null,null,"","","","",0,"",0]
[96,"","",null,null,null,null,null,null,null,null,null,null,null,null,null,null,null,null,null,null,null,null,null,null,null,"","","",null,null,null,null,null,null,null,null,null,null,null,"","","","",0,"",0]
[97,"","",null,null,null,null,null,null,null,null,null,null,null,null,null,null,null,null,null,null,null,null,null,null,null,"","","",null,null,null,null,null,null,null,null,null,null,null,"","","","",0,"",0]
[98,"","",null,null,null,null,null,null,null,null,null,null,null,null,null,null,null,null,null,null,null,null,null,null,null,"","","",null,null,null,null,null,null,null,null,null,null,null,"","","","",0,"",0]
[99,"","",null,null,null,null,null,null,null,null,null,null,null,null,null,null,null,null,null,null,null,null,null,null,null,"","","",null,null,null,null,null,null,null,null,null,null,null,"","","","",0,"",0]
[100,"","",null,null,null,null,null,null,null,null,null,null,null,null,null,null,null,null,null,null,null,null,null,null,null,"","","",null,null,null,null,null,null,null,null,null,null,null,"","","","",0,"",0]

{"sheet":"GefilterteRangliste","index":3,"n_rows":101,"n_cols":40,"rows_kept":101,"cut":false,"hidden":false,"merged":[]}
["Rangliste",null,null,null,null,null,null,{"$f":"COUNTA(C3:C104)","v":0},{"$f":"COUNTIFS(E3:E104,E3)","v":0},null,null,null,null,null,null,null,null,null,null,null,null,null,null,null,"S1","S2","ges.",null,null,null,null,null,null,null,null,null,null,"ges."]
["",null,null,null,0,null,null,null,null,null,null,null,null,null,null,null,null,null,null,null,null,null,null,null,"","","",null,null,null,null,null,null,null,null,null,null,"","",0]
["",null,null,null,null,null,null,null,null,null,null,null,null,null,null,null,null,null,null,null,null,null,null,null,"","","",null,null,null,null,null,null,null,null,null,null,"","",0]
["",null,null,null,null,null,null,null,null,null,null,null,null,null,null,null,null,null,null,null,null,null,null,null,"","","",null,null,null,null,null,null,null,null,null,null,"","",0]
["",null,null,null,null,null,null,null,null,null,null,null,null,null,null,null,null,null,null,null,null,null,null,null,"","","",null,null,null,null,null,null,null,null,null,null,"","",0]
["",null,null,null,null,null,null,null,null,null,null,null,null,null,null,null,null,null,null,null,null,null,null,null,"","","",null,null,null,null,null,null,null,null,null,null,"","",0]
["",null,null,null,null,null,null,null,null,null,null,null,null,null,null,null,null,null,null,null,null,null,null,null,"","","",null,null,null,null,null,null,null,null,null,null,"","",0]
["",null,null,null,null,null,null,null,null,null,null,null,null,null,null,null,null,null,null,null,null,null,null,null,"","","",null,null,null,null,null,null,null,null,null,null,"","",0]
["",null,null,null,null,null,null,null,null,null,null,null,null,null,null,null,null,null,null,null,null,null,null,null,"","","",null,null,null,null,null,null,null,null,null,null,"","",0]
["",null,null,null,null,null,null,null,null,null,null,null,null,null,null,null,null,null,null,null,null,null,null,null,"","","",null,null,null,null,null,null,null,null,null,null,"","",0]
["",null,null,null,null,null,null,null,null,null,null,null,null,null,null,null,null,null,null,null,null,null,null,null,"","","",null,null,null,null,null,null,null,null,null,null,"","",0]
["",null,null,null,null,null,null,null,null,null,null,null,null,null,null,null,null,null,null,null,null,null,null,null,"","","",null,null,null,null,null,null,null,null,null,null,"","",0]
["",null,null,null,null,null,null,null,null,null,null,null,null,null,null,null,null,null,null,null,null,null,null,null,"","","",null,null,null,null,null,null,null,null,null,null,"","",0]
["",null,null,null,null,null,null,null,null,null,null,null,null,null,null,null,null,null,null,null,null,null,null,null,"","","",null,null,null,null,null,null,null,null,null,null,"","",0]
["",null,null,null,null,null,null,null,null,null,null,null,null,null,null,null,null,null,null,null,null,null,null,null,"","","",null,null,null,null,null,null,null,null,null,null,"","",0]
["",null,null,null,null,null,null,null,null,null,null,null,null,null,null,null,null,null,null,null,null,null,null,null,"","","",null,null,null,null,null,null,null,null,null,null,"","",0]
["",null,null,null,null,null,null,null,null,null,null,null,null,null,null,null,null,null,null,null,null,null,null,null,"","","",null,null,null,null,null,null,null,null,null,null,"","",0]
["",null,null,null,null,null,null,null,null,null,null,null,null,null,null,null,null,null,null,null,null,null,null,null,"","","",null,null,null,null,null,null,null,null,null,null,"","",0]
["",null,null,null,null,null,null,null,null,null,null,null,null,null,null,null,null,null,null,null,null,null,null,null,"","","",null,null,null,null,null,null,null,null,null,null,"","",0]
["",null,null,null,null,null,null,null,null,null,null,null,null,null,null,null,null,null,null,null,null,null,null,null,"","","",null,null,null,null,null,null,null,null,null,null,"","",0]
["",null,null,null,null,null,null,null,null,null,null,null,null,null,null,null,null,null,null,null,null,null,null,null,"","","",null,null,null,null,null,null,null,null,null,null,"","",0]
["",null,null,null,null,null,null,null,null,null,null,null,null,null,null,null,null,null,null,null,null,null,null,null,"","","",null,null,null,null,null,null,null,null,null,null,"","",0]
["",null,null,null,null,null,null,null,null,null,null,null,null,null,null,null,null,null,null,null,null,null,null,null,"","","",null,null,null,null,null,null,null,null,null,null,"","",0]
["",null,null,null,null,null,null,null,null,null,null,null,null,null,null,null,null,null,null,null,null,null,null,null,"","","",null,null,null,null,null,null,null,null,null,null,"","",0]
["",null,null,null,null,null,null,null,null,null,null,null,null,null,null,null,null,null,null,null,null,null,null,null,"","","",null,null,null,null,null,null,null,null,null,null,"","",0]
["",null,null,null,null,null,null,null,null,null,null,null,null,null,null,null,null,null,null,null,null,null,null,null,"","","",null,null,null,null,null,null,null,null,null,null,"","",0]
["",null,null,null,null,null,null,null,null,null,null,null,null,null,null,null,null,null,null,null,null,null,null,null,"","","",null,null,null,null,null,null,null,null,null,null,"","",0]
["",null,null,null,null,null,null,null,null,null,null,null,null,null,null,null,null,null,null,null,null,null,null,null,"","","",null,null,null,null,null,null,null,null,null,null,"","",0]
["",null,null,null,null,null,null,null,null,null,null,null,null,null,null,null,null,null,null,null,null,null,null,null,"","","",null,null,null,null,null,null,null,null,null,null,"","",0]
["",null,null,null,null,null,null,null,null,null,null,null,null,null,null,null,null,null,null,null,null,null,null,null,"","","",null,null,null,null,null,null,null,null,null,null,"","",0]
["",null,null,null,null,null,null,null,null,null,null,null,null,null,null,null,null,null,null,null,null,null,null,null,"","","",null,null,null,null,null,null,null,null,null,null,"","",0]
["",null,null,null,null,null,null,null,null,null,null,null,null,null,null,null,null,null,null,null,null,null,null,null,"","","",null,null,null,null,null,null,null,null,null,null,"","",0]
["",null,null,null,null,null,null,null,null,null,null,null,null,null,null,null,null,null,null,null,null,null,null,null,"","","",null,null,null,null,null,null,null,null,null,null,"","",0]
["",null,null,null,null,null,null,null,null,null,null,null,null,null,null,null,null,null,null,null,null,null,null,null,"","","",null,null,null,null,null,null,null,null,null,null,"","",0]
["",null,null,null,null,null,null,null,null,null,null,null,null,null,null,null,null,null,null,null,null,null,null,null,"","","",null,null,null,null,null,null,null,null,null,null,"","",0]
["",null,null,null,null,null,null,null,null,null,null,null,null,null,null,null,null,null,null,null,null,null,null,null,"","","",null,null,null,null,null,null,null,null,null,null,"","",0]
["",null,null,null,null,null,null,null,null,null,null,null,null,null,null,null,null,null,null,null,null,null,null,null,"","","",null,null,null,null,null,null,null,null,null,null,"","",0]
["",null,null,null,null,null,null,null,null,null,null,null,null,null,null,null,null,null,null,null,null,null,null,null,"","","",null,null,null,null,null,null,null,null,null,null,"","",0]
["",null,null,null,null,null,null,null,null,null,null,null,null,null,null,null,null,null,null,null,null,null,null,null,"","","",null,null,null,null,null,null,null,null,null,null,"","",0]
["",null,null,null,null,null,null,null,null,null,null,null,null,null,null,null,null,null,null,null,null,null,null,null,"","","",null,null,null,null,null,null,null,null,null,null,"","",0]
["",null,null,null,null,null,null,null,null,null,null,null,null,null,null,null,null,null,null,null,null,null,null,null,"","","",null,null,null,null,null,null,null,null,null,null,"","",0]
["",null,null,null,null,null,null,null,null,null,null,null,null,null,null,null,null,null,null,null,null,null,null,null,"","","",null,null,null,null,null,null,null,null,null,null,"","",0]
["",null,null,null,null,null,null,null,null,null,null,null,null,null,null,null,null,null,null,null,null,null,null,null,"","","",null,null,null,null,null,null,null,null,null,null,"","",0]
["",null,null,null,null,null,null,null,null,null,null,null,null,null,null,null,null,null,null,null,null,null,null,null,"","","",null,null,null,null,null,null,null,null,null,null,"","",0]
["",null,null,null,null,null,null,null,null,null,null,null,null,null,null,null,null,null,null,null,null,null,null,null,"","","",null,null,null,null,null,null,null,null,null,null,"","",0]
["",null,null,null,null,null,null,null,null,null,null,null,null,null,null,null,null,null,null,null,null,null,null,null,"","","",null,null,null,null,null,null,null,null,null,null,"","",0]
["",null,null,null,null,null,null,null,null,null,null,null,null,null,null,null,null,null,null,null,null,null,null,null,"","","",null,null,null,null,null,null,null,null,null,null,"","",0]
["",null,null,null,null,null,null,null,null,null,null,null,null,null,null,null,null,null,null,null,null,null,null,null,"","","",null,null,null,null,null,null,null,null,null,null,"","",0]
["",null,null,null,null,null,null,null,null,null,null,null,null,null,null,null,null,null,null,null,null,null,null,null,"","","",null,null,null,null,null,null,null,null,null,null,"","",0]
["",null,null,null,null,null,null,null,null,null,null,null,null,null,null,null,null,null,null,null,null,null,null,null,"","","",null,null,null,null,null,null,null,null,null,null,"","",0]
["",null,null,null,null,null,null,null,null,null,null,null,null,null,null,null,null,null,null,null,null,null,null,null,"","","",null,null,null,null,null,null,null,null,null,null,"","",0]
["",null,null,null,null,null,null,null,null,null,null,null,null,null,null,null,null,null,null,null,null,null,null,null,"","","",null,null,null,null,null,null,null,null,null,null,"","",0]
["",null,null,null,null,null,null,null,null,null,null,null,null,null,null,null,null,null,null,null,null,null,null,null,"","","",null,null,null,null,null,null,null,null,null,null,"","",0]
["",null,null,null,null,null,null,null,null,null,null,null,null,null,null,null,null,null,null,null,null,null,null,null,"","","",null,null,null,null,null,null,null,null,null,null,"","",0]
["",null,null,null,null,null,null,null,null,null,null,null,null,null,null,null,null,null,null,null,null,null,null,null,"","","",null,null,null,null,null,null,null,null,null,null,"","",0]
["",null,null,null,null,null,null,null,null,null,null,null,null,null,null,null,null,null,null,null,null,null,null,null,"","","",null,null,null,null,null,null,null,null,null,null,"","",0]
["",null,null,null,null,null,null,null,null,null,null,null,null,null,null,null,null,null,null,null,null,null,null,null,"","","",null,null,null,null,null,null,null,null,null,null,"","",0]
["",null,null,null,null,null,null,null,null,null,null,null,null,null,null,null,null,null,null,null,null,null,null,null,"","","",null,null,null,null,null,null,null,null,null,null,"","",0]
["",null,null,null,null,null,null,null,null,null,null,null,null,null,null,null,null,null,null,null,null,null,null,null,"","","",null,null,null,null,null,null,null,null,null,null,"","",0]
["",null,null,null,null,null,null,null,null,null,null,null,null,null,null,null,null,null,null,null,null,null,null,null,"","","",null,null,null,null,null,null,null,null,null,null,"","",0]
["",null,null,null,null,null,null,null,null,null,null,null,null,null,null,null,null,null,null,null,null,null,null,null,"","","",null,null,null,null,null,null,null,null,null,null,"","",0]
["",null,null,null,null,null,null,null,null,null,null,null,null,null,null,null,null,null,null,null,null,null,null,null,"","","",null,null,null,null,null,null,null,null,null,null,"","",0]
["",null,null,null,null,null,null,null,null,null,null,null,null,null,null,null,null,null,null,null,null,null,null,null,"","","",null,null,null,null,null,null,null,null,null,null,"","",0]
["",null,null,null,null,null,null,null,null,null,null,null,null,null,null,null,null,null,null,null,null,null,null,null,"","","",null,null,null,null,null,null,null,null,null,null,"","",0]
["",null,null,null,null,null,null,null,null,null,null,null,null,null,null,null,null,null,null,null,null,null,null,null,"","","",null,null,null,null,null,null,null,null,null,null,"","",0]
["",null,null,null,null,null,null,null,null,null,null,null,null,null,null,null,null,null,null,null,null,null,null,null,"","","",null,null,null,null,null,null,null,null,null,null,"","",0]
["",null,null,null,null,null,null,null,null,null,null,null,null,null,null,null,null,null,null,null,null,null,null,null,"","","",null,null,null,null,null,null,null,null,null,null,"","",0]
["",null,null,null,null,null,null,null,null,null,null,null,null,null,null,null,null,null,null,null,null,null,null,null,"","","",null,null,null,null,null,null,null,null,null,null,"","",0]
["",null,null,null,null,null,null,null,null,null,null,null,null,null,null,null,null,null,null,null,null,null,null,null,"","","",null,null,null,null,null,null,null,null,null,null,"","",0]
["",null,null,null,null,null,null,null,null,null,null,null,null,null,null,null,null,null,null,null,null,null,null,null,"","","",null,null,null,null,null,null,null,null,null,null,"","",0]
["",null,null,null,null,null,null,null,null,null,null,null,null,null,null,null,null,null,null,null,null,null,null,null,"","","",null,null,null,null,null,null,null,null,null,null,"","",0]
["",null,null,null,null,null,null,null,null,null,null,null,null,null,null,null,null,null,null,null,null,null,null,null,"","","",null,null,null,null,null,null,null,null,null,null,"","",0]
["",null,null,null,null,null,null,null,null,null,null,null,null,null,null,null,null,null,null,null,null,null,null,null,"","","",null,null,null,null,null,null,null,null,null,null,"","",0]
["",null,null,null,null,null,null,null,null,null,null,null,null,null,null,null,null,null,null,null,null,null,null,null,"","","",null,null,null,null,null,null,null,null,null,null,"","",0]
["",null,null,null,null,null,null,null,null,null,null,null,null,null,null,null,null,null,null,null,null,null,null,null,"","","",null,null,null,null,null,null,null,null,null,null,"","",0]
["",null,null,null,null,null,null,null,null,null,null,null,null,null,null,null,null,null,null,null,null,null,null,null,"","","",null,null,null,null,null,null,null,null,null,null,"","",0]
["",null,null,null,null,null,null,null,null,null,null,null,null,null,null,null,null,null,null,null,null,null,null,null,"","","",null,null,null,null,null,null,null,null,null,null,"","",0]
["",null,null,null,null,null,null,null,null,null,null,null,null,null,null,null,null,null,null,null,null,null,null,null,"","","",null,null,null,null,null,null,null,null,null,null,"","",0]
["",null,null,null,null,null,null,null,null,null,null,null,null,null,null,null,null,null,null,null,null,null,null,null,"","","",null,null,null,null,null,null,null,null,null,null,"","",0]
["",null,null,null,null,null,null,null,null,null,null,null,null,null,null,null,null,null,null,null,null,null,null,null,"","","",null,null,null,null,null,null,null,null,null,null,"","",0]
["",null,null,null,null,null,null,null,null,null,null,null,null,null,null,null,null,null,null,null,null,null,null,null,"","","",null,null,null,null,null,null,null,null,null,null,"","",0]
["",null,null,null,null,null,null,null,null,null,null,null,null,null,null,null,null,null,null,null,null,null,null,null,"","","",null,null,null,null,null,null,null,null,null,null,"","",0]
["",null,null,null,null,null,null,null,null,null,null,null,null,null,null,null,null,null,null,null,null,null,null,null,"","","",null,null,null,null,null,null,null,null,null,null,"","",0]
["",null,null,null,null,null,null,null,null,null,null,null,null,null,null,null,null,null,null,null,null,null,null,null,"","","",null,null,null,null,null,null,null,null,null,null,"","",0]
["",null,null,null,null,null,null,null,null,null,null,null,null,null,null,null,null,null,null,null,null,null,null,null,"","","",null,null,null,null,null,null,null,null,null,null,"","",0]
["",null,null,null,null,null,null,null,null,null,null,null,null,null,null,null,null,null,null,null,null,null,null,null,"","","",null,null,null,null,null,null,null,null,null,null,"","",0]
["",null,null,null,null,null,null,null,null,null,null,null,null,null,null,null,null,null,null,null,null,null,null,null,"","","",null,null,null,null,null,null,null,null,null,null,"","",0]
["",null,null,null,null,null,null,null,null,null,null,null,null,null,null,null,null,null,null,null,null,null,null,null,"","","",null,null,null,null,null,null,null,null,null,null,"","",0]
["",null,null,null,null,null,null,null,null,null,null,null,null,null,null,null,null,null,null,null,null,null,null,null,"","","",null,null,null,null,null,null,null,null,null,null,"","",0]
["",null,null,null,null,null,null,null,null,null,null,null,null,null,null,null,null,null,null,null,null,null,null,null,"","","",null,null,null,null,null,null,null,null,null,null,"","",0]
["",null,null,null,null,null,null,null,null,null,null,null,null,null,null,null,null,null,null,null,null,null,null,null,"","","",null,null,null,null,null,null,null,null,null,null,"","",0]
["",null,null,null,null,null,null,null,null,null,null,null,null,null,null,null,null,null,null,null,null,null,null,null,"","","",null,null,null,null,null,null,null,null,null,null,"","",0]
["",null,null,null,null,null,null,null,null,null,null,null,null,null,null,null,null,null,null,null,null,null,null,null,"","","",null,null,null,null,null,null,null,null,null,null,"","",0]
["",null,null,null,null,null,null,null,null,null,null,null,null,null,null,null,null,null,null,null,null,null,null,null,"","","",null,null,null,null,null,null,null,null,null,null,"","",0]
["",null,null,null,null,null,null,null,null,null,null,null,null,null,null,null,null,null,null,null,null,null,null,null,"","","",null,null,null,null,null,null,null,null,null,null,"","",0]
["",null,null,null,null,null,null,null,null,null,null,null,null,null,null,null,null,null,null,null,null,null,null,null,"","","",null,null,null,null,null,null,null,null,null,null,"","",0]
["",null,null,null,null,null,null,null,null,null,null,null,null,null,null,null,null,null,null,null,null,null,null,null,"","","",null,null,null,null,null,null,null,null,null,null,"","",0]
["",null,null,null,null,null,null,null,null,null,null,null,null,null,null,null,null,null,null,null,null,null,null,null,"","","",null,null,null,null,null,null,null,null,null,null,"","",0]
["",null,null,null,null,null,null,null,null,null,null,null,null,null,null,null,null,null,null,null,null,null,null,null,"","","",null,null,null,null,null,null,null,null,null,null,"","",0]
["",null,null,null,null,null,null,null,null,null,null,null,null,null,null,null,null,null,null,null,null,null,null,null,"","","",null,null,null,null,null,null,null,null,null,null,"","",0]
["",null,null,null,null,null,null,null,null,null,null,null,null,null,null,null,null,null,null,null,null,null,null,null,"","","",null,null,null,null,null,null,null,null,null,null,"","",0]

{"sheet":"Info","index":4,"n_rows":1,"n_cols":5,"rows_kept":1,"cut":false,"hidden":false,"merged":[]}
["Zelle","Teilnehmer","vorher","neu","Änderungszeitpunkt"]